bitfinex/quotes_SOLUSD_20250301
["timestamp","ask_amount","ask_price","bid_price","bid_amount"]
[1740805777687,79.2,146.4,146.39,2.57195727]
[1740805779194,79.2,146.4,146.39,8.03675727]
[1740805779695,79.2,146.4,146.39,2.57195727]
[1740805780566,84.6644,146.4,146.39,2.57195727]
[1740805781175,79.2,146.4,146.39,2.57195727]
[1740805785395,79.2,146.4,146.39,2.0]
[1740805785573,5.4644,146.4,146.38,2.57195727]
[1740805785896,20.0,146.4,146.39,2.0]
[1740805786281,80.7,146.39,146.38,2.0]
[1740805786985,80.7,146.39,146.37,2.0]
[1740805787188,80.7,146.39,146.38,2.0]
[1740805787403,80.7,146.39,146.37,2.0]
[1740805788006,20.0,146.37,146.36,2.0]
[1740805788297,20.0,146.37,146.33,2.0]
[1740805788298,20.0,146.35,146.33,2.0]
[1740805788611,1.5437,146.37,146.33,2.57195727]
[1740805788612,20.0,146.34,146.33,2.57195727]
[1740805789191,20.0,146.35,146.33,2.57195727]
[1740805789370,20.0,146.35,146.34,2.0]
[1740805789699,20.0,146.35,146.34,2.57195727]
[1740805790364,25.4663,146.35,146.34,2.0]
[1740805790568,25.4663,146.35,146.33,2.60195727]
[1740805790768,25.4663,146.35,146.34,0.57195727]
[1740805790997,25.4663,146.35,146.33,2.60195727]
[1740805791397,25.4663,146.35,146.33,2.03]
[1740805791586,25.4663,146.35,146.33,2.60195727]
[1740805791883,25.4663,146.35,146.34,0.57195727]
[1740805792182,11.726,146.36,146.35,0.57195727]
[1740805793085,11.726,146.36,146.34,2.57195727]
[1740805793283,11.726,146.36,146.35,0.57195727]
[1740805793586,6.26,146.36,146.35,2.57195727]
[1740805793895,6.26,146.36,146.35,2.0]
[1740805794799,6.26,146.36,146.35,2.57195727]
[1740805795194,6.26,146.36,146.35,2.0]
[1740805795407,6.26,146.36,146.35,2.57195727]
[1740805795773,11.7259,146.36,146.35,2.57195727]
[1740805796174,11.7259,146.36,146.35,2.0]
[1740805796500,11.7259,146.36,146.35,2.57195727]
[1740805797327,6.26,146.36,146.35,2.57195727]
[1740805797596,11.7259,146.36,146.35,2.57195727]
[1740805798103,80.7,146.35,146.33,0.03]
[1740805798411,88.7938,146.34,146.33,0.03]
[1740805798587,82.2024,146.34,146.33,2.03]
[1740805799109,80.7,146.34,146.33,2.60195727]
[1740805799622,86.1667,146.34,146.33,2.03]
[1740805800202,86.1667,146.34,146.33,0.03]
[1740805800378,13.6641,146.37,146.33,0.03]
[1740805800379,5.4644,146.4,146.39,2.0]
[1740805801313,20.0,146.38,146.37,0.57195727]
[1740805801480,5.4644,146.4,146.35,2.57195727]
[1740805801481,20.0,146.37,146.35,2.57195727]
[1740805801803,20.0,146.37,146.34,2.57195727]
[1740805802010,20.0,146.37,146.34,2.0]
[1740805802304,20.0,146.37,146.33,2.60195727]
[1740805802679,20.0,146.37,146.33,2.03]
[1740805802887,20.0,146.37,146.34,2.0]
[1740805803104,1.42804273,146.35,146.33,0.03]
[1740805803281,2.93044273,146.35,146.33,0.03]
[1740805803482,5.4667,146.34,146.33,0.03]
[1740805805893,20.0,146.34,146.33,0.03]
[1740805806312,20.0,146.34,146.33,2.60195727]
[1740805806882,6.26,146.37,146.35,2.0]
[1740805807144,6.26,146.37,146.36,2.0]
[1740805807811,11.7256,146.37,146.36,2.0]
[1740805808890,6.26,146.37,146.36,2.0]
[1740805809903,20.0,146.35,146.34,2.57195727]
[1740805810299,6.26,146.37,146.36,2.57195727]
[1740805810610,1.587,146.41,146.4,2.57195727]
[1740805810611,0.063,146.41,146.4,2.57195727]
[1740805811111,20.063,146.41,146.4,2.57195727]
[1740805812095,0.063,146.41,146.4,2.57195727]
[1740805813825,0.063,146.41,146.4,8.03635727]
[1740805814517,0.063,146.41,146.4,26.68600613]
[1740805814714,0.063,146.41,146.4,21.22160613]
[1740805815093,0.063,146.41,146.4,26.68600613]
[1740805815514,0.063,146.41,146.4,28.68600613]
[1740805815898,0.063,146.41,146.4,30.68600613]
[1740805816323,0.063,146.43,146.42,6.57195727]
[1740805816618,0.063,146.43,146.42,32.77230613]
[1740805816794,0.063,146.43,146.42,111.77230613]
[1740805817000,0.063,146.43,146.42,109.77230613]
[1740805817724,0.063,146.43,146.42,103.51230613]
[1740805818020,0.063,146.43,146.42,3.86265727]
[1740805818216,0.063,146.43,146.42,2.57195727]
[1740805820627,80.763,146.43,146.42,2.57195727]
[1740805820997,80.763,146.43,146.41,2.0]
[1740805821200,20.0,146.41,146.4,2.57195727]
[1740805821394,20.0,146.41,146.4,0.57195727]
[1740805821591,20.0,146.4,146.39,2.57195727]
[1740805822427,25.4644,146.4,146.38,2.0]
[1740805822597,25.4644,146.4,146.39,0.57195727]
[1740805823098,25.4644,146.4,146.38,2.0]
[1740805823294,20.0,146.37,146.36,2.0]
[1740805823599,100.7,146.36,146.35,2.57195727]
[1740805823819,20.0,146.36,146.35,2.57195727]
[1740805824005,20.0,146.37,146.34,2.0]
[1740805824196,5.4667,146.34,146.33,2.60195727]
[1740805824392,86.1667,146.34,146.33,0.03]
[1740805824823,86.1667,146.34,146.33,2.03]
[1740805825011,86.1667,146.34,146.33,2.60195727]
[1740805825711,80.7,146.34,146.33,2.60195727]
[1740805828617,20.0,146.34,146.33,0.03]
[1740805829338,1.5199,146.34,146.33,0.03]
[1740805830025,6.9866,146.34,146.33,0.03]
[1740805830229,8.41464273,146.34,146.33,0.03]
[1740805830438,6.9866,146.34,146.33,0.03]
[1740805833123,8.41464273,146.34,146.33,0.03]
[1740805833324,27.06429159,146.34,146.33,0.03]
[1740805834847,6.9866,146.34,146.33,0.03]
[1740805837943,5.4667,146.34,146.33,2.03]
[1740805838247,115.16,146.36,146.35,2.0]
[1740805838723,115.16,146.36,146.35,2.57195727]
[1740805839543,115.16,146.36,146.34,2.57195727]
[1740805839839,115.16,146.36,146.35,2.0]
[1740805840048,120.6259,146.36,146.34,2.0]
[1740805840226,120.6259,146.36,146.35,2.0]
[1740805840727,120.6259,146.36,146.34,2.0]
[1740805840930,120.6259,146.36,146.35,2.0]
[1740805841660,115.16,146.36,146.35,2.0]
[1740805841831,115.16,146.36,146.35,2.57195727]
[1740805844064,0.063,146.41,146.4,2.57195727]
[1740805844234,0.063,146.41,146.4,26.68600613]
[1740805845458,0.063,146.41,146.4,8.03635727]
[1740805845835,0.063,146.41,146.4,21.22160613]
[1740805846037,0.063,146.41,146.4,23.22160613]
[1740805846359,0.063,146.41,146.4,32.31990613]
[1740805846738,0.063,146.41,146.4,113.31990613]
[1740805849659,0.063,146.41,146.4,111.31990613]
[1740805849863,0.063,146.41,146.4,113.31990613]
[1740805850360,0.063,146.41,146.4,111.31990613]
[1740805850840,0.063,146.41,146.4,105.85550613]
[1740805851041,0.063,146.41,146.4,107.88550613]
[1740805851266,0.063,146.41,146.4,113.34990613]
[1740805851740,0.063,146.41,146.4,114.78365925]
[1740805853339,0.063,146.41,146.4,103.88550613]
[1740805853658,0.063,146.41,146.4,22.88550613]
[1740805854545,0.063,146.41,146.4,4.23585727]
[1740805854859,0.063,146.41,146.4,28.34990613]
[1740805855066,0.063,146.41,146.4,30.34990613]
[1740805855264,0.063,146.41,146.4,111.34990613]
[1740805855563,0.063,146.41,146.4,113.34990613]
[1740805856250,0.063,146.43,146.42,6.57195727]
[1740805856570,0.063,146.43,146.42,26.65506532]
[1740805857358,0.063,146.44,146.43,25.22160613]
[1740805857550,0.063,146.44,146.43,112.48160613]
[1740805858652,0.063,146.44,146.43,117.94490613]
[1740805859647,0.063,146.44,146.43,119.37827438]
[1740805859867,0.063,146.46,146.45,25.22160613]
[1740805860369,0.063,146.5,146.46,25.22160613]
[1740805860559,0.063,146.5,146.46,106.22160613]
[1740805860882,0.063,146.5,146.46,111.68380613]
[1740805863855,0.063,146.5,146.46,115.07658367]
[1740805864252,0.063,146.5,146.46,21.22160613]
[1740805865081,0.063,146.5,146.46,26.68380613]
[1740805865282,0.063,146.5,146.46,28.68380613]
[1740805865582,0.063,146.5,146.46,30.68380613]
[1740805867987,0.063,146.5,146.46,28.68380613]
[1740805868171,0.063,146.5,146.46,26.68380613]
[1740805869595,0.063,146.5,146.46,28.68380613]
[1740805870072,0.063,146.5,146.46,30.68380613]
[1740805870391,0.063,146.5,146.46,38.36760613]
[1740805870680,0.063,146.5,146.46,119.36760613]
[1740805874702,5.063,146.47,146.46,119.36760613]
[1740805875597,5.063,146.47,146.46,117.36760613]
[1740805875799,5.063,146.47,146.46,119.36760613]
[1740805877692,5.063,146.47,146.46,109.68380613]
[1740805877894,5.063,146.47,146.46,111.68380613]
[1740805878893,0.063,146.5,146.48,4.57195727]
[1740805879069,0.063,146.5,146.48,6.57195727]
[1740805879688,0.063,146.5,146.48,25.22160613]
[1740805879996,0.063,146.5,146.48,30.68300613]
[1740805880999,0.063,146.5,146.48,26.68300613]
[1740805881208,0.063,146.5,146.48,2.57195727]
[1740805881781,26.1587,146.5,146.48,2.57195727]
[1740805882175,106.8587,146.5,146.48,2.57195727]
[1740805882704,106.8587,146.5,146.48,0.57195727]
[1740805883097,5.5241,146.49,146.48,0.57195727]
[1740805883309,5.5241,146.49,146.48,2.57195727]
[1740805883597,5.5241,146.49,146.47,0.57195727]
[1740805883806,5.5241,146.49,146.48,0.57195727]
[1740805884309,20.0,146.47,146.46,2.57195727]
[1740805885302,25.4618,146.47,146.46,2.57195727]
[1740805886276,20.0,146.47,146.46,2.57195727]
[1740805886477,5.5242,146.49,146.48,2.57195727]
[1740805887882,86.2242,146.49,146.48,2.57195727]
[1740805890289,80.763,146.49,146.48,2.57195727]
[1740805891990,0.063,146.49,146.48,2.57195727]
[1740805892507,0.063,146.49,146.48,21.22160613]
[1740805893202,0.063,146.49,146.48,2.57195727]
[1740805894606,0.063,146.49,146.48,21.22160613]
[1740805902121,0.063,146.49,146.48,26.68300613]
[1740805902613,0.063,146.49,146.48,28.68300613]
[1740805902819,0.063,146.49,146.48,111.68300613]
[1740805904412,0.063,146.5,146.49,25.22160613]
[1740805904618,0.063,146.5,146.49,112.48160613]
[1740805905101,0.063,146.54,146.53,2.57195727]
[1740805906316,0.063,146.54,146.53,21.22160613]
[1740805906826,0.063,146.54,146.53,28.68120613]
[1740805907009,0.063,146.54,146.53,30.68120613]
[1740805907902,0.063,146.54,146.53,28.68120613]
[1740805908225,0.063,146.54,146.53,30.68120613]
[1740805911522,0.063,146.54,146.53,111.68120613]
[1740805912026,0.063,146.54,146.53,107.68120613]
[1740805915624,0.063,146.54,146.53,109.68120613]
[1740805916341,0.063,146.54,146.53,102.22160613]
[1740805917331,0.063,146.54,146.53,107.68120613]
[1740805917625,0.063,146.54,146.53,28.68120613]
[1740805917813,0.063,146.54,146.53,30.68120613]
[1740805923325,0.063,146.54,146.53,111.68120613]
[1740805924631,0.063,146.56,146.55,0.57195727]
[1740805924930,0.063,146.56,146.55,4.57195727]
[1740805925531,0.063,146.56,146.55,23.22160613]
[1740805925832,0.063,146.56,146.55,28.68040613]
[1740805927437,0.063,146.56,146.55,111.68040613]
[1740805928734,0.0001,146.56,146.55,111.68040613]
[1740805929930,0.0001,146.56,146.55,249.68040613]
[1740805930444,0.0001,146.58,146.57,26.57195727]
[1740805930647,0.0001,146.58,146.57,271.89351283]
[1740805930820,0.0001,146.58,146.57,270.46160613]
[1740805932347,0.0001,146.58,146.57,275.91970613]
[1740805933434,0.0001,146.58,146.57,108.46160613]
[1740805933636,0.0001,146.58,146.57,83.57195727]
[1740805933914,0.0001,146.58,146.57,8.81195727]
[1740805935220,0.0001,146.58,146.57,36.91970613]
[1740805936825,0.0001,146.58,146.57,32.91970613]
[1740805937031,0.0001,146.58,146.57,29.46160613]
[1740805937249,0.0001,146.58,146.57,34.91970613]
[1740805937453,0.0001,146.58,146.57,117.91970613]
[1740805939857,0.0001,146.58,146.57,115.91970613]
[1740805940025,0.0001,146.58,146.57,112.46160613]
[1740805940227,0.0001,146.58,146.57,110.46160613]
[1740805940546,0.0001,146.58,146.57,112.46160613]
[1740805941633,0.0001,146.58,146.57,117.91970613]
[1740805942286,0.0001,146.58,146.57,108.46160613]
[1740805943353,0.0001,146.58,146.57,2.57195727]
[1740805944352,0.0431,146.59,146.58,6.57195727]
[1740805944554,0.0431,146.59,146.58,25.22160613]
[1740805945929,0.0431,146.59,146.58,30.67930613]
[1740805948270,0.063,146.6,146.59,25.22160613]
[1740805948442,0.063,146.6,146.59,112.46160613]
[1740805948638,0.0001,146.6,146.59,250.46160613]
[1740805949035,0.0001,146.61,146.6,25.22160613]
[1740805949238,0.063,146.65,146.63,25.22160613]
[1740805949435,0.063,146.65,146.63,106.22160613]
[1740805950448,0.063,146.65,146.63,111.67750613]
[1740805951668,0.063,146.65,146.64,25.22160613]
[1740805951868,0.063,146.65,146.64,31.46160613]
[1740805952683,0.063,146.65,146.64,36.91710613]
[1740805954661,0.063,146.65,146.64,32.91710613]
[1740805955362,0.063,146.65,146.64,36.29146435]
[1740805956577,0.063,146.65,146.64,30.05146435]
[1740805957187,0.063,146.65,146.64,34.05146435]
[1740805957681,0.063,146.66,146.65,25.22160613]
[1740805957881,0.03,146.69,146.68,21.22160613]
[1740805958088,0.03,146.69,146.68,27.46160613]
[1740805958680,0.03,146.69,146.68,32.91560613]
[1740805961462,0.03,146.69,146.68,34.91560613]
[1740805961869,0.03,146.69,146.68,32.91560613]
[1740805962075,0.03,146.69,146.68,113.91560613]
[1740805962284,0.03,146.69,146.68,119.28209124]
[1740805962592,0.03,146.69,146.68,121.28209124]
[1740805963680,0.03,146.69,146.68,117.28209124]
[1740805965694,0.03,146.69,146.68,119.28209124]
[1740805965860,0.03,146.69,146.68,121.28209124]
[1740805966066,0.03,146.69,146.68,259.28209124]
[1740805966584,0.0001,146.69,146.68,259.28209124]
[1740805971688,0.0001,146.69,146.68,259.34509124]
[1740805973684,0.03,146.73,146.72,4.57195727]
[1740805973873,0.03,146.73,146.72,109.67410613]
[1740805976891,0.03,146.73,146.72,8.02445727]
[1740805977110,8.0215,146.73,146.72,0.57195727]
[1740805977311,8.0215,146.73,146.7,2.0]
[1740805977480,8.0215,146.73,146.72,2.0]
[1740805977681,8.0215,146.73,146.71,2.0]
[1740805977908,8.0215,146.73,146.72,2.0]
[1740805978795,13.4736,146.73,146.72,2.0]
[1740805979679,13.4736,146.73,146.7,2.0]
[1740805979881,13.4736,146.73,146.7,0.3334]
[1740805980081,20.0,146.7,146.69,0.3334]
[1740805980500,8.0215,146.73,146.72,0.3334]
[1740805980814,13.4736,146.73,146.72,0.3334]
[1740805981001,80.7,146.72,146.69,0.3334]
[1740805981183,20.0,146.7,146.68,0.3964]
[1740805981379,20.0,146.7,146.69,0.3334]
[1740805981688,21.6376,146.69,146.68,0.3964]
[1740805982284,27.0912,146.69,146.68,0.3964]
[1740805982899,33.4451,146.69,146.68,0.0001]
[1740805983103,33.4451,146.69,146.67,0.3334]
[1740805983318,33.4451,146.69,146.66,0.3334]
[1740805983509,47.0792,146.69,146.66,0.3334]
[1740805983888,20.0,146.66,146.65,0.3334]
[1740805984214,80.7,146.68,146.67,0.3334]
[1740805984806,7.9915,146.69,146.68,0.3334]
[1740805985109,1.6376,146.69,146.68,0.3334]
[1740805985685,6.3839,146.73,146.72,0.3334]
[1740805985888,11.8361,146.73,146.72,0.3334]
[1740805987011,80.7,146.72,146.7,0.3334]
[1740805988588,5.4529,146.71,146.7,0.3334]
[1740805988810,5.4529,146.71,146.68,0.3334]
[1740805989017,100.7,146.7,146.69,0.3334]
[1740805990919,106.1533,146.7,146.69,0.3334]
[1740805992405,106.1533,146.7,146.68,0.3334]
[1740805992714,106.1533,146.7,146.69,0.3334]
[1740805993108,80.7,146.69,146.67,0.3334]
[1740805994005,80.7,146.69,146.66,0.3334]
[1740805994393,80.7,146.69,146.67,0.3334]
[1740805994593,80.7,146.69,146.66,0.3334]
[1740805994842,5.454,146.68,146.66,0.3334]
[1740805995626,6.9649,146.68,146.67,0.3334]
[1740805996120,6.9649,146.68,146.66,0.3334]
[1740805997223,6.9649,146.68,146.67,0.3334]
[1740805997524,6.9649,146.68,146.66,0.3334]
[1740805998125,6.9649,146.68,146.65,0.3334]
[1740805998423,20.0,146.66,146.65,0.3334]
[1740805998800,6.9649,146.68,146.64,0.3334]
[1740805999015,6.9649,146.68,146.65,0.3334]
[1740806000126,5.4547,146.66,146.63,0.3964]
[1740806000327,5.4547,146.66,146.63,0.063]
[1740806000899,20.0,146.65,146.64,0.3334]
[1740806001125,100.7,146.65,146.63,0.063]
[1740806001432,100.7,146.65,146.64,0.3334]
[1740806001605,106.1551,146.65,146.63,0.063]
[1740806002506,111.59595529,146.65,146.63,0.063]
[1740806004722,106.1551,146.65,146.63,0.063]
[1740806006336,111.6553207,146.65,146.63,0.063]
[1740806006833,113.6553207,146.65,146.63,0.0001]
[1740806010921,111.6553207,146.65,146.63,0.0001]
[1740806011232,113.6553207,146.65,146.63,0.0001]
[1740806011429,111.6553207,146.65,146.63,0.0001]
[1740806011840,20.0,146.61,146.57,0.3334]
[1740806012136,80.7,146.6,146.58,0.3334]
[1740806012845,80.7,146.6,146.59,0.3334]
[1740806013831,86.157,146.6,146.59,0.3334]
[1740806014041,86.157,146.6,146.58,0.3334]
[1740806014466,20.0,146.57,146.56,0.3964]
[1740806014756,80.7,146.58,146.56,0.063]
[1740806014935,1.6666,146.59,146.56,0.063]
[1740806014936,100.7,146.57,146.56,0.063]
[1740806016046,106.1581,146.57,146.56,0.063]
[1740806018648,39.1034,146.57,146.53,0.063]
[1740806018853,20.0,146.54,146.53,0.063]
[1740806019147,100.7,146.54,146.53,0.063]
[1740806020334,106.1592,146.54,146.53,0.063]
[1740806024158,100.7,146.54,146.53,0.3964]
[1740806024627,80.7,146.54,146.53,0.3964]
[1740806028255,5.4585,146.56,146.55,0.3334]
[1740806029363,80.7,146.57,146.56,0.3334]
[1740806029545,20.0,146.57,146.56,0.3334]
[1740806031544,25.4581,146.57,146.56,0.3334]
[1740806033469,25.4581,146.57,146.55,0.3334]
[1740806034567,25.4581,146.57,146.54,0.3334]
[1740806034869,39.1034,146.57,146.53,0.063]
[1740806035040,20.0,146.54,146.53,0.063]
[1740806035241,100.7,146.54,146.53,0.063]
[1740806035459,106.1592,146.54,146.53,0.063]
[1740806036290,100.7,146.54,146.53,0.3964]
[1740806039273,20.0,146.54,146.53,0.3964]
[1740806040478,80.7,146.59,146.54,0.3334]
[1740806040661,132.2234,146.6,146.53,0.063]
[1740806040662,20.0,146.56,146.55,0.3334]
[1740806040867,100.7,146.56,146.55,0.3334]
[1740806042759,106.1585,146.56,146.55,0.3334]
[1740806043387,106.1885,146.56,146.55,0.3334]
[1740806044371,106.1885,146.56,146.53,0.063]
[1740806044372,106.1885,146.56,146.54,0.3334]
[1740806044787,106.1885,146.56,146.55,0.3334]
[1740806045889,106.1885,146.56,146.53,0.063]
[1740806045890,106.1885,146.56,146.54,0.3334]
[1740806046054,20.0,146.52,146.5,0.063]
[1740806046258,80.7,146.51,146.5,0.063]
[1740806046464,20.0,146.52,146.5,0.063]
[1740806047957,5.4603,146.51,146.5,0.063]
[1740806050782,13.6491,146.53,146.5,0.063]
[1740806050958,19.1087,146.53,146.5,0.063]
[1740806051988,20.0,146.51,146.5,0.063]
[1740806052973,25.4603,146.51,146.5,0.063]
[1740806053891,5.4592,146.54,146.5,0.063]
[1740806054090,5.4589,146.55,146.5,0.063]
[1740806054264,5.4589,146.55,146.5,18.71264886]
[1740806054595,5.4886,146.56,146.5,0.063]
[1740806055091,80.7,146.55,146.5,0.063]
[1740806055281,80.7,146.54,146.5,0.063]
[1740806056066,20.0,146.51,146.5,0.063]
[1740806056266,100.7,146.51,146.5,0.063]
[1740806057690,80.7,146.51,146.5,0.063]
[1740806059981,86.1597,146.53,146.5,0.063]
[1740806060394,80.7,146.53,146.5,0.063]
[1740806061675,86.1598,146.53,146.5,0.063]
[1740806063380,80.7,146.53,146.5,0.063]
[1740806066000,86.1593,146.54,146.5,0.063]
[1740806066182,80.7,146.53,146.5,0.063]
[1740806068700,80.7,146.55,146.5,0.063]
[1740806069208,80.7,146.55,146.51,1.6231]
[1740806070408,86.159,146.55,146.5,0.063]
[1740806072104,80.7,146.54,146.5,0.063]
[1740806073680,5.4596,146.53,146.5,0.063]
[1740806075412,80.7,146.54,146.5,0.063]
[1740806075589,86.1593,146.54,146.5,0.063]
[1740806076612,80.7,146.54,146.5,0.063]
[1740806077717,86.1593,146.54,146.5,0.063]
[1740806077917,5.4593,146.54,146.5,0.063]
[1740806078718,5.4888,146.55,146.5,0.063]
[1740806089701,80.7,146.54,146.5,0.063]
[1740806089922,5.4596,146.53,146.5,0.063]
[1740806092520,80.7,146.52,146.5,0.063]
[1740806093314,86.1603,146.52,146.5,0.063]
[1740806095825,80.7,146.51,146.5,0.063]
[1740806096027,5.4603,146.52,146.5,0.063]
[1740806096508,20.0,146.51,146.5,0.063]
[1740806097533,25.4603,146.51,146.5,0.063]
[1740806100735,5.4603,146.51,146.5,0.063]
[1740806100943,5.4596,146.53,146.5,0.063]
[1740806102230,115.04,146.54,146.5,0.063]
[1740806102458,115.04,146.54,146.5,18.71264886]
[1740806103847,120.4993,146.54,146.5,0.063]
[1740806104339,20.0,146.51,146.5,0.063]
[1740806104650,100.7,146.51,146.5,0.063]
[1740806106242,112.4003,146.51,146.49,0.063]
[1740806106448,126.0512,146.51,146.48,0.063]
[1740806109031,119.8112,146.51,146.48,0.063]
[1740806109546,106.1603,146.51,146.48,0.063]
[1740806110529,80.7,146.5,146.48,0.063]
[1740806112741,5.4611,146.49,146.48,0.063]
[1740806117251,20.0,146.49,146.48,0.063]
[1740806117425,5.4607,146.51,146.48,0.063]
[1740806118747,80.7,146.52,146.48,0.063]
[1740806119120,86.16,146.52,146.48,0.063]
[1740806127151,86.19,146.52,146.48,0.063]
[1740806127353,0.03,146.52,146.48,0.063]
[1740806127847,0.03,146.52,146.49,18.64964886]
[1740806129356,0.03,146.52,146.51,18.64964886]
[1740806132561,0.03,146.52,146.51,24.10994886]
[1740806135258,0.03,146.52,146.51,105.10994886]
[1740806146070,0.03,146.52,146.51,99.64964886]
[1740806146278,0.03,146.52,146.49,0.063]
[1740806146865,0.03,146.52,146.49,18.71264886]
[1740806150574,0.03,146.52,146.49,24.17364886]
[1740806151448,0.03,146.52,146.49,18.71264886]
[1740806161678,20.03,146.52,146.49,0.063]
[1740806161972,0.03,146.52,146.49,0.063]
[1740806162495,0.03,146.52,146.49,18.71264886]
[1740806166385,0.03,146.52,146.49,24.17364886]
[1740806166768,0.03,146.52,146.51,18.64964886]
[1740806166973,0.03,146.52,146.51,239.64964886]
[1740806167284,0.03,146.52,146.51,241.27834886]
[1740806167763,0.03,146.52,146.51,243.27834886]
[1740806167962,0.03,146.52,146.51,241.27834886]
[1740806168189,0.03,146.52,146.51,244.73864886]
[1740806168361,0.03,146.52,146.51,248.73864886]
[1740806168673,0.03,146.52,146.51,246.73864886]
[1740806168882,0.03,146.52,146.51,244.73864886]
[1740806169066,0.03,146.52,146.51,246.73864886]
[1740806169962,0.03,146.52,146.51,110.73864886]
[1740806170392,0.03,146.52,146.51,253.66146242]
[1740806170575,0.03,146.55,146.51,253.66146242]
[1740806170576,0.03,146.55,146.54,4.0]
[1740806170772,0.03,146.56,146.55,4.0]
[1740806170963,0.03,146.65,146.57,2.0]
[1740806171165,5.4853,146.65,146.57,81.0]
[1740806171670,80.7,146.64,146.55,6.22]
[1740806171873,1.6268,146.63,146.55,6.22]
[1740806172484,5.457,146.6,146.55,6.22]
[1740806175196,80.7,146.59,146.51,6.22]
[1740806175378,82.3268,146.58,146.49,92.7438]
[1740806175799,82.3268,146.58,146.5,18.64964886]
[1740806176484,5.4581,146.57,146.5,18.64964886]
[1740806176900,5.4581,146.57,146.5,24.11024886]
[1740806177077,82.3268,146.58,146.5,24.11024886]
[1740806177272,87.7846,146.58,146.5,24.11024886]
[1740806177596,87.7846,146.58,146.5,107.11024886]
[1740806177799,82.3268,146.58,146.52,18.64964886]
[1740806178198,80.7,146.58,146.52,18.64964886]
[1740806178402,80.7,146.58,146.53,5.4596]
[1740806179284,86.1578,146.58,146.51,5.4603]
[1740806179685,86.1578,146.58,146.52,18.64964886]
[1740806180294,86.1578,146.58,146.51,18.64964886]
[1740806180497,5.4575,146.59,146.52,5.4597]
[1740806180698,86.187,146.6,146.52,5.4597]
[1740806181498,86.187,146.6,146.52,7.4597]
[1740806181702,80.73,146.6,146.52,9.4597]
[1740806184106,80.73,146.6,146.53,18.64964886]
[1740806184612,80.73,146.6,146.53,22.14645449]
[1740806184817,0.03,146.6,146.53,103.14645449]
[1740806185206,5.487,146.6,146.53,99.64964886]
[1740806186504,5.487,146.6,146.53,105.10914886]
[1740806187205,5.487,146.6,146.53,99.64964886]
[1740806187704,5.487,146.6,146.53,105.10924886]
[1740806188214,5.487,146.6,146.53,105.17224886]
[1740806188399,5.487,146.6,146.53,99.71264886]
[1740806189512,5.487,146.6,146.53,105.17204886]
[1740806190385,0.03,146.6,146.53,99.71264886]
[1740806190587,20.0,146.58,146.53,0.063]
[1740806190801,20.0,146.56,146.53,0.063]
[1740806192209,25.4587,146.56,146.53,0.063]
[1740806193018,6.184,146.55,146.53,0.063]
[1740806193727,86.884,146.55,146.53,0.063]
[1740806194104,20.0,146.51,146.49,0.063]
[1740806194311,6.184,146.5,146.49,0.063]
[1740806196120,11.6447,146.5,146.49,0.063]
[1740806196490,6.184,146.5,146.49,0.063]